[Event "VIII Open Semana Santa 2024"]
[Site "San Vicente del Raspeig"]
[Date "2024.03.27"]
[Round "1.11"]
[White "Xiao, Tong(Qd)"]
[Black "Marabajan Navas, Saul"]
[Result "1-0"]
[ECO "B30"]
[WhiteElo "2484"]
[BlackElo "2055"]
[Annotator "TA"]
[PlyCount "111"]
[EventDate "2024.03.27"]
[EventType "swiss"]
[EventCountry "ESP"]
[SourceTitle "playchess.com"]
[Source "ChessBase"]
[SourceQuality "1"]
[TimeControl "5400+30"]

{[%evp 9,111,37,48,27,34,28,40,37,56,47,56,46,50,46,65,54,62,70,78,79,65,74,73,56,91,90,97,75,79,41,39,43,35,38,53,45,48,40,49,43,45,42,46,43,42,24,60,60,68,68,69,69,69,69,67,68,68,68,68,60,68,68,136,137,136,136,129,128,227,230,225,221,251,248,268,275,261,212,242,190,239,226,455,455,455,450,435,435,428,428,420,408,882,956,29979,29980,29979,29981,29981,29982,29982,29983,29983,29984]} 1. e4 {[%emt 0:00:02]} c5 {[%emt 0:00:08]} 2. Nf3 {[%emt 0:00:08][%cal Bg1f3,Bf3d2,Bd2f1,Bf1e3][%mdl 32]} Nc6 {[%emt 0:00:04]} 3. Nc3 {[%emt 0:00:12]} e5 {[%emt 0:00:15]} 4. Bc4 {[%emt 0:00:06]} g6 {[%emt 0:00:40]} 5. d3 {[%emt 0:00:09]} h6 $1 {[%emt 0:00:11]} 6. Nd2 {[%emt 0:01:07]} Bg7 {[%emt 0:02:06]} 7. Nf1 {[%emt 0:00:08]} Nge7 {[%emt 0:01:01]} 8. h4 {[%emt 0:00:08] Weiß steht etwas besser.} Nd4 {[%emt 0:06:11][%cal Ob7b5]} 9. a4 {[%emt 0:00:54]} d6 {[%emt 0:02:29]} 10. Ne3 {[%emt 0:00:36]} Be6 {[%emt 0:01:13]} 11. Ncd5 {[%emt 0:01:28]} h5 {[%emt 0:07:16]} 12. c3 {[%emt 0:12:25] Nxe7 wäre nun fies.} Ndc6 {[%emt 0:02:44]} 13. Qf3 {[%emt 0:00:23]} Bxd5 {[%emt 0:02:20]} 14. Nxd5 {[%emt 0:00:17]} Nxd5 {[%emt 0:00:53]} 15. Bxd5 {[%emt 0:00:07]} Qd7 {[%emt 0:00:50]} 16. Bg5 {[%emt 0:01:06]} Nd8 {[%emt 0:02:46]} 17. Bf6 {[%emt 0:05:50] Weiß hat aktiveres Spiel. Die schwarzen Türme stehen passiv. Ein starkes Läuferpaar.} O-O {[%emt 0:03:13]} 18. Bxd8 {[%emt 0:04:47]} Raxd8 {[%emt 0:04:54]} 19. g4 {[%emt 0:02:36]} Qxg4 {[%emt 0:06:46]} 20. Qxg4 {[%emt 0:00:08]} hxg4 {[%emt 0:00:05] Schwarz ist schwach auf den weissen Feldern} 21. h5 {[%emt 0:00:45]} (21. Bxb7 Rb8 22. Bd5 Rxb2 $17) 21... g5 {[%emt 0:03:12]} 22. h6 {[%emt 0:03:59]} Bf6 {[%emt 0:02:09]} 23. O-O-O {[%emt 0:00:36]} Rb8 {[%emt 0:02:31]} 24. Rdg1 {[%emt 0:02:31]} Kh7 {[%emt 0:10:53]} 25. Rxg4 {[%emt 0:00:07]} Kg6 {[%emt 0:00:52]} 26. Rg3 {[%emt 0:01:24]} (26. h7 Rh8 $16) 26... Rh8 {[%emt 0:00:56][%cal Oh8h7]} 27. Kc2 {[%emt 0:05:17]} Rxh6 {[%emt 0:01:39] [#]} 28. Bxf7+ $1 {[%emt 0:00:07]} Kg7 {[%emt 0:00:02]} 29. Rxh6 {[%emt 0:00:19]} Kxh6 $14 {[%emt 0:00:01][%mdl 4096] Endspiel. KRB-KRB} 30. Kb3 Kg7 {[%emt 0:05:00]} 31. Be6 {[%emt 0:01:01]} b5 {[%emt 0:03:02]} 32. axb5 {[%emt 0:00:19]} Rxb5+ {[%emt 0:00:01]} 33. Kc2 {[%emt 0:00:06]} Rb8 {[%emt 0:01:12]} 34. Rg1 Bd8 {[%emt 0:02:21]} 35. Bf5 {[%emt 0:01:10]} Bb6 {[%emt 0:00:59] Weiß überlässt nun nichts mehr dem Zufall.} (35... Ra8 $14) 36. Rxg5+ $16 {[%emt 0:00:09]} Kf7 {[%emt 0:01:00]} 37. Rh5 {[%emt 0:01:52]} Rg8 {[%emt 0:02:13]} 38. Kb3 {[%emt 0:00:30]} c4+ {[%emt 0:04:30]} 39. Kxc4 $18 {[%emt 0:00:42]} Bxf2 {[%emt 0:00:04]} 40. Rh7+ {[%emt 0:00:42]} Kf6 {[%emt 0:03:07]} 41. Rh6+ {[%emt 0:00:27]} Kg5 {[%emt 0:00:24]} 42. Rxd6 {[%emt 0:00:09]} Kf4 {[%emt 0:01:04]} 43. b4 {[%emt 0:06:54]} Rg1 {[%emt 0:01:09]} 44. Kb3 {[%emt 0:03:12]} Ke3 {[%emt 0:05:20]} (44... Rc1 {war angesagt.} 45. Kb2 Re1) 45. Rd7 {[%emt 0:05:56]} Kd2 $2 {[%emt 0:02:27] [#]} (45... Ra1 46. Bh7 Bg3) 46. d4 $1 {[%emt 0:00:26]} exd4 {[%emt 0:00:35]} 47. cxd4 {[%emt 0:00:04]} (47. Rxa7 dxc3 48. Ra2+ Ke3 $16) 47... Rb1+ {[%emt 0:00:37]} 48. Kc4 {[%emt 0:00:14]} Rc1+ {[%emt 0:01:27]} 49. Kd5 {[%emt 0:08:44]} Rb1 {[%emt 0:02:13]} 50. Rb7 {[%emt 0:00:16]} (50. Rxa7 Rxb4 51. Ra2+ Ke3 $16) 50... a5 {[%emt 0:01:59] [#]} (50... Rd1 $142 51. Rc7 (51. Rxa7 Ke3 $14) 51... Ke3) 51. e5 $1 {[%emt 0:00:59][%cal Be4e5,Be5e6][%mdl 32]} Rxb4 {[%emt 0:03:43]} 52. Rxb4 {[%emt 0:00:10] Weiß setzt Matt.} axb4 {[%emt 0:00:01]} 53. e6 {[%emt 0:00:08]} Bh4 {[%emt 0:00:08]} 54. Kc6 {[%emt 0:00:12]} Ke3 {[%emt 0:00:23]} 55. d5 {[%emt 0:00:05][%cal Bd4d5,Bd5d6][%mdl 32]} Kf4 {[%emt 0:00:37] [#]} 56. d6 $1 {[%emt 0:00:07] Gewichteter Fehlerwert: Weiß=0.06 (makellos) /Schwarz=0.32.  Fehler:       	---       	Schwarz=5     Ungenau:       	Weiß=1     	Schwarz=3     OK:         	Weiß=22    	Schwarz=15    Bester:       	Weiß=1     	Schwarz=1     Stark:        	Weiß=2     	---} 1-0

[Event "VIII Open Semana Santa 2024"]
[Site "San Vicente del Raspeig"]
[Date "2024.03.27"]
[Round "1.12"]
[White "Arce Gonzalez, Dario"]
[Black "Lamard, Guillaume"]
[Result "0-1"]
[ECO "B92"]
[WhiteElo "2054"]
[BlackElo "2483"]
[Annotator "TA"]
[PlyCount "106"]
[EventDate "2024.03.27"]
[EventType "swiss"]
[EventCountry "ESP"]
[SourceTitle "playchess.com"]
[Source "ChessBase"]
[SourceQuality "1"]
[TimeControl "5400+30"]

{[%evp 21,106,-22,-18,-36,-34,-33,-29,-31,-29,-39,-33,-36,-26,-35,-13,-13,-15,-43,-19,-53,-43,-52,-40,-36,-35,-30,-25,-28,-8,-8,-13,-16,-14,-41,-43,-54,-12,-37,-57,-40,-40,-29,-32,-57,-33,-23,-28,-104,-104,-92,-77,-138,-136,-152,-144,-139,-139,-189,-189,-174,-187,-186,-187,-187,-187,-215,-201,-386,-356,-376,-294,-504,-500,-512,-447,-574,-574,-1180,-1045,-2215,-2016,-29976,-29978,-29978,-29979,-29976,-29967]} 1. e4 {[%emt 0:00:02]} c5 {[%emt 0:00:05]} 2. Nf3 {[%emt 0:00:11]} d6 {[%emt 0:00:05]} 3. d4 {[%emt 0:00:25]} cxd4 {[%emt 0:00:04]} 4. Nxd4 {[%emt 0:00:04]} Nf6 {[%emt 0:00:04]} 5. Nc3 {[%emt 0:00:04]} a6 {[%emt 0:00:04]} 6. Be2 {[%emt 0:00:23]} e5 {[%emt 0:00:10]} 7. Nb3 {[%emt 0:00:05]} Be7 {[%emt 0:00:13]} 8. Be3 {[%emt 0:01:18]} Be6 {[%emt 0:00:44]} 9. O-O {[%emt 0:00:52]} O-O {[%emt 0:00:43]} 10. f4 {[%emt 0:00:23]} exf4 {[%emt 0:05:27]} 11. Rxf4 {[%emt 0:00:13]} Nc6 {[%emt 0:02:15]} 12. Rf1 {[%emt 0:08:01]} Rc8 {[%emt 0:03:00]} 13. Nd4 {[%emt 0:07:58]} Nxd4 {[%emt 0:04:16]} 14. Bxd4 {[%emt 0:00:24] Schwarz hat minimalen Vorteil.} Re8 {[%emt 0:04:53]} 15. Qd2 {[%emt 0:05:22]} Nd7 {[%emt 0:02:39]} 16. Qf4 {[%emt 0:06:59] [#]} Ne5 $1 {[%emt 0:01:35]} 17. Rad1 {[%emt 0:02:55]} Qa5 {[%emt 0:07:58]} 18. Qg3 {[%emt 0:15:20]} Bd8 {[%emt 0:14:18]} 19. Be3 {[%emt 0:07:48]} Ng6 {[%emt 0:51:27]} 20. Bg4 {[%emt 0:10:04]} (20. Rxd6 $2 Qb4 (20... Bxa2 21. Qf2 $14) (20... Bc7 $2 21. a3 $19) 21. Rdd1 Qxb2 $19) 20... Bxg4 {[%emt 0:00:00]} 21. Qxg4 {[%emt 0:00:07]} Bb6 $1 {[%emt 0:00:00]} 22. Qg3 {[%emt 0:05:59]} Bxe3+ {[%emt 0:00:00]} 23. Qxe3 {[%emt 0:00:06]} Qb4 {[%emt 0:00:00]} 24. Rb1 {[%emt 0:04:10]} Re6 {[%emt 0:00:00]} 25. a3 {[%emt 0:04:50]} Qc5 {[%emt 0:00:00]} 26. Qxc5 {[%emt 0:06:10]} Rxc5 {[%emt 0:00:00]} 27. Rbd1 {[%emt 0:00:57]} Ne5 {[%emt 0:04:00]} 28. Rd5 {[%emt 0:02:57]} Rc8 {[%emt 0:00:00]} 29. Re1 {[%emt 0:01:27]} Nc4 {[%emt 0:00:00]} 30. Nd1 {[%emt 0:02:09]} Nb6 {[%emt 0:00:00]} 31. Rd2 {[%emt 0:00:05]} f5 {[%emt 0:00:00]} 32. c3 {[%emt 0:04:20]} fxe4 {[%emt 0:00:00]} (32... Rxe4 33. Rxe4 fxe4 34. Rxd6 $14) 33. Rd4 {[%emt 0:00:09]} Rc4 $36 {[%emt 0:00:00][%mdl 2048] Schwarz kämpft um Vorteil.} 34. Ne3 {[%emt 0:01:52]} (34. Rd2 $1 $11 {bleibt in der Remisbreite.}) 34... Rxd4 $17 {[%emt 0:00:00] Ab hier gerät Weiß ins Schliddern.} 35. cxd4 {[%emt 0:00:01][%mdl 4096] Endspiel. KRN-KRN} d5 {[%emt 0:00:00]} 36. Kf2 {[%emt 0:02:03]} (36. Rc1 $142) 36... Rc6 {[%emt 0:00:00]} 37. Ke2 {[%emt 0:00:13]} Kf7 {[%emt 0:00:00]} 38. Rf1+ {[%emt 0:00:13]} Ke6 $1 {[%emt 0:00:00]} 39. Rf8 {[%emt 0:01:12] [#]} (39. g4 $17) 39... Rc8 $1 $19 {[%emt 0:00:00]} 40. Rf5 {[%emt 0:00:30] [#]} Rc2+ $3 {[%emt 0:00:00][%mdl 512]} 41. Nxc2 {[%emt 0:00:18]} Kxf5 {[%emt 0:00:00] KN-KN} 42. b3 {[%emt 0:00:20]} Nc8 {[%emt 0:00:00]} 43. Ke3 {[%emt 0:00:49]} Ne7 {[%emt 0:00:00]} 44. h3 $2 {[%emt 0:02:42]} (44. Kd2) 44... h5 {[%emt 0:01:32]} 45. g3 {[%emt 0:00:00]} Nc6 {[%emt 0:01:42]} 46. Ne1 $2 {[%emt 0:00:00]} (46. b4 {kämpft weiter.}) 46... Na5 {[%emt 0:06:16]} 47. Ng2 {[%emt 0:00:08]} g5 {[%emt 0:00:00] Wehrt Nf4 ab} 48. h4 {[%emt 0:00:10]} gxh4 {[%emt 0:00:00]} (48... Nxb3 49. hxg5 Na5 (49... Kxg5 $2 50. Nf4 $19) 50. Nf4 Nc4+ (50... Kxg5 $2 51. Nxd5 Nc4+ 52. Kxe4 $19) 51. Kf2 Kxg5 (51... Nxa3 $2 52. g4+ hxg4 53. g6 $19) 52. Nxd5 Nxa3 53. Ke3 $19) 49. gxh4 {[%emt 0:00:10]} Nxb3 {[%emt 0:00:00]} 50. Nf4 {[%emt 0:00:20] [#]} Nxd4 $1 {[%emt 0:00:00][%mdl 512] ( -> ...Nc2+)} 51. Nxh5 {[%emt 0:00:23]} (51. Nxd5 Nc2+) 51... Ke5 {[%emt 0:00:00] Schwarz setzt Matt.} 52. a4 {[%emt 0:00:31]} Nf5+ {[%emt 0:00:00]} 53. Kd2 {[%emt 0:00:08]} Nxh4 {[%emt 0:00:00] Gewichteter Fehlerwert: Weiß=0.55/Schwarz=0.06 (makellos) .  Fehler:       	Weiß=5     	---        Ungenau:       	Weiß=5     	Schwarz=1     OK:         	Weiß=8     	Schwarz=17    Bester:       	Weiß=1     	Schwarz=4     Stark:        	---       	Schwarz=3     Brilliant:      	---       	Schwarz=1} 0-1

[Event "VIII Open Semana Santa 2024"]
[Site "San Vicente del Raspeig"]
[Date "2024.03.27"]
[Round "1.13"]
[White "Ceres, Dragos"]
[Black "Jimenez Fernandez, Rebeca"]
[Result "1-0"]
[ECO "B13"]
[WhiteElo "2482"]
[BlackElo "2052"]
[Annotator "TA"]
[PlyCount "95"]
[EventDate "2024.03.27"]
[EventType "swiss"]
[EventCountry "ESP"]
[SourceTitle "playchess.com"]
[Source "ChessBase"]
[SourceQuality "1"]
[TimeControl "5400+30"]

{[%evp 14,95,8,9,5,13,20,16,18,5,16,20,7,0,0,0,40,22,39,36,45,47,79,86,85,23,26,19,25,16,19,11,17,17,16,15,17,16,20,14,41,41,20,0,76,75,74,75,75,75,74,73,74,75,79,79,168,166,170,82,82,82,118,125,120,76,334,334,334,334,321,77,10631,9658,29965,29966,29961,29948,5089,4954,29987,29988,29988,29989]} 1. e4 {[%emt 0:00:01]} c6 {[%emt 0:00:05]} 2. d4 {[%emt 0:00:05]} d5 {[%emt 0:00:03]} 3. exd5 {[%emt 0:00:06]} cxd5 {[%emt 0:00:04]} 4. Bd3 {[%emt 0:00:05]} Nc6 {[%emt 0:00:04]} 5. c3 {[%emt 0:00:05]} Nf6 {[%emt 0:00:03]} 6. h3 {[%emt 0:00:06]} e5 {[%emt 0:00:03]} 7. dxe5 {[%emt 0:00:05]} Nxe5 {[%emt 0:00:03]} 8. Nf3 {[%emt 0:00:06]} Nxd3+ {[%emt 0:00:03]} 9. Qxd3 {[%emt 0:00:05]} Bd6 {[%emt 0:00:10]} 10. O-O {[%emt 0:00:06]} O-O {[%emt 0:00:04] The position is equal.} 11. Be3 {[%emt 0:00:04]} Be6 {[%emt 0:00:06]} 12. Nbd2 {[%emt 0:01:40]} Qd7 {[%emt 0:00:07]} 13. Rfe1 {[%emt 0:01:50]} Bf5 {[%emt 0:17:51]} 14. Qd4 {[%emt 0:08:34]} Ne4 {[%emt 0:13:57]} 15. Nxe4 {[%emt 0:00:05]} (15. Qxd5 $2 Bh2+ 16. Nxh2 Qxd5 $19) 15... dxe4 {[%emt 0:01:17]} 16. Nh4 {[%emt 0:03:24] Threatens to win with Nxf5.} Rfd8 {[%emt 0:20:55][%cal Of5h3]} 17. Rad1 {[%emt 0:06:23][%cal Od4d6] And now Qxd6! would win.} Qe6 {[%emt 0:05:51][%cal Od6h2]} 18. Nxf5 {[%emt 0:05:40]} Qxf5 {[%emt 0:06:21]} 19. Kh1 {[%emt 0:00:28]} (19. Qc4 $16) 19... b6 {[%emt 0:11:44]} 20. Qd5 {[%emt 0:01:47]} Qxd5 {[%emt 0:00:36]} 21. Rxd5 {[%emt 0:00:07]} Bc7 $1 {[%emt 0:00:10]} 22. Rxd8+ {[%emt 0:00:11]} Rxd8 $11 {[%emt 0:00:19][%mdl 4096] Endgame. KRB-KRB} 23. Bd4 {[%emt 0:00:04]} f5 {[%emt 0:00:56]} 24. g4 {[%emt 0:00:14]} g6 {[%emt 0:00:50]} 25. gxf5 {[%emt 0:04:11]} gxf5 {[%emt 0:00:04] [#]} 26. f3 $1 {[%emt 0:00:11]} Re8 {[%emt 0:03:43]} (26... exf3 27. Re7) 27. Rg1+ {[%emt 0:12:04]} Kf8 {[%emt 0:00:05]} 28. Rg5 {[%emt 0:02:02]} f4 {[%emt 0:03:56]} (28... e3 $1 $11 29. Rxf5+ Kg8 30. Rg5+ Kf8 31. Rf5+ Kg8 32. Rg5+ Kf8 33. Rf5+) 29. fxe4 $16 {[%emt 0:00:27] White is more active.} Rxe4 {[%emt 0:00:23]} 30. Kg2 {[%emt 0:00:08]} Re2+ {[%emt 0:03:41]} 31. Kf3 {[%emt 0:01:15]} Rxb2 {[%emt 0:02:09][%cal Ob2h2]} 32. Rg7 {[%emt 0:00:06]} Bd6 {[%emt 0:01:34]} 33. Rxa7 {[%emt 0:00:07]} Rh2 {[%emt 0:00:50]} 34. Rxh7 {[%emt 0:03:59]} (34. Bxb6 Rxh3+ 35. Ke4 Rxc3 $11) 34... Rxa2 {[%emt 0:00:15]} (34... b5 $16) 35. Bxb6 $18 {[%emt 0:00:15]} Be5 {[%emt 0:06:09]} 36. c4 {[%emt 0:00:16]} (36. Bd4 $18 Bd6 37. Rd7) 36... Rc2 $16 {[%emt 0:00:48]} 37. Rh5 {[%emt 0:01:30]} Rc3+ {[%emt 0:01:02]} 38. Ke4 {[%emt 0:01:01]} Bg7 {[%emt 0:02:30]} 39. c5 {[%emt 0:01:05][%cal Oe4d5]} (39. Kxf4 Rxc4+ 40. Kf3 Rc3+ 41. Ke2 Rc2+ 42. Ke1 Bf6 $14) 39... Rc4+ $2 {[%emt 0:00:37][%mdl 8192]} (39... Kf7 $16 {was worth a try.}) 40. Kd5 $18 {[%emt 0:02:56]} Rd4+ {[%emt 0:00:09]} 41. Kc6 {[%emt 0:00:04] Strongly threatening Kb5.} Kf7 {[%emt 0:00:30] [#]} 42. Kb7 $2 {[%emt 0:01:03]} (42. Kb5 $1 $18) 42... Kg6 $2 {[%emt 0:00:06][%mdl 8192] [#]} (42... Rb4 $16) 43. c6 $1 {[%emt 0:01:04]} Rb4 {[%emt 0:00:46]} (43... Re4 44. c7) 44. Rd5 {[%emt 0:01:43]} f3 {[%emt 0:00:32][%cal Bf4f3,Bf3f2][%mdl 32]} 45. c7 {[%emt 0:00:25]} f2 {[%emt 0:00:33]} 46. Rd1 {[%emt 0:01:03]} (46. c8=R $2 {too greedy.} f1=Q (46... f1=R 47. Rc6+ Rf6 48. Rxf6+ Kxf6 49. Rd4 $11) 47. Rc6+ Kh7 $19) 46... Bd4 {[%emt 0:00:41]} 47. c8=Q {[%emt 0:00:08]} ({Not} 47. c8=R Rxb6+ (47... Bxb6 $2 {loses.} 48. Rc6+ Kh7 49. Rxb6 $18) 48. Ka8 Ra6+ 49. Kb8 Rf6 $15) 47... Rxb6+ {[%emt 0:00:03]} 48. Kc7 {[%emt 0:00:05] Weighted Error Value: White=0.19 (very precise) /Black=0.55.  Loses game:     	---       	Black=2      Missed win:     	White=1     	---        Mistake:       	White=2     	Black=2      Inaccurate:     	White=1     	Black=5      OK:         	White=17    	Black=10     Best:        	White=5     	Black=3      Strong:       	White=1     	Black=1} 1-0

[Event "VIII Open Semana Santa 2024"]
[Site "San Vicente del Raspeig"]
[Date "2024.03.27"]
[Round "1.14"]
[White "Triantafilidis, Mihail"]
[Black "Solodovnichenko, Yuri"]
[Result "1/2-1/2"]
[ECO "B13"]
[WhiteElo "2052"]
[BlackElo "2481"]
[Annotator "TA"]
[PlyCount "27"]
[EventDate "2024.03.27"]
[EventType "swiss"]
[EventCountry "ESP"]
[SourceTitle "playchess.com"]
[Source "ChessBase"]
[SourceQuality "1"]
[TimeControl "5400+30"]

{[%evp 9,27,9,11,16,14,0,14,8,6,0,62,47,50,45,80,87,117,122,108,116]} 1. d4 {[%emt 0:00:06]} d5 {[%emt 0:00:25]} 2. Nf3 {[%emt 0:00:09]} Nf6 {[%emt 0:00:27]} 3. Bf4 {[%emt 0:00:08]} c5 {[%emt 0:00:30]} 4. e3 {[%emt 0:00:12]} cxd4 {[%emt 0:00:12]} 5. exd4 {[%emt 0:00:08]} Nc6 {[%emt 0:00:04]} 6. Nbd2 {[%emt 0:02:05]} Bf5 {[%emt 0:00:53]} 7. Bb5 {[%emt 0:01:16]} e6 {[%emt 0:04:14]} 8. Ne5 {[%emt 0:02:13] The position is equal.} Qb6 {[%emt 0:00:47][%csl LRb5,LRd4]} 9. c4 {[%emt 0:01:06][%cal Bc2c4,Bc4c5][%mdl 32] [#] Threatens to win with Qb3.} a6 {[%emt 0:04:16]} ({Better is} 9... Qxd4 $11 10. Nxc6 Qxf4) 10. Bxc6+ $14 {[%emt 0:00:18]} bxc6 {[%emt 0:00:05]} 11. O-O $1 $36 {[%emt 0:06:37][%mdl 2048] White has good play.} Be7 {[%emt 0:03:59]} 12. c5 {[%emt 0:01:33] White is better.} Qb7 {[%emt 0:01:46][%cal Of6d7]} 13. Qb3 {[%emt 0:01:01]} Qc8 {[%emt 0:06:00]} 14. Qa4 {[%emt 0:04:21] Weighted Error Value: White=0.01 (flawless) /Black=0.20 (precise) .  Mistake:       	---       	Black=1      Inaccurate:     	---       	Black=2      OK:         	White=4     	Black=4      Best:        	White=2     	---        Strong:       	White=1     	---} 1/2-1/2

[Event "VIII Open Semana Santa 2024"]
[Site "San Vicente del Raspeig"]
[Date "2024.03.27"]
[Round "1.15"]
[White "Macias Pino, Diego"]
[Black "Bethencourt Hernandez, Alberto"]
[Result "1/2-1/2"]
[ECO "B36"]
[WhiteElo "2477"]
[BlackElo "2051"]
[Annotator "RC"]
[PlyCount "125"]
[EventDate "2024.03.27"]
[EventType "swiss"]
[EventCountry "ESP"]
[SourceTitle "playchess.com"]
[Source "ChessBase"]
[SourceQuality "1"]
[TimeControl "5400+30"]

1. e4 {[%emt 0:00:02]} c5 {[%emt 0:00:08]} 2. Nf3 {[%emt 0:00:12]} Nc6 {[%emt 0:00:13]} 3. d4 {[%emt 0:00:03]} cxd4 {[%emt 0:00:17]} 4. Nxd4 {[%emt 0:00:04]} g6 {[%emt 0:00:36]} 5. c4 {[%emt 0:00:05]} Nf6 {[%emt 0:00:29]} 6. Nc3 {[%emt 0:00:04]} Nxd4 {[%emt 0:00:13]} 7. Qxd4 {[%emt 0:00:07]} d6 {[%emt 0:00:22]} 8. Be3 {[%emt 0:00:06]} Bg7 {[%emt 0:00:51]} 9. Be2 {[%emt 0:03:55]} O-O {[%emt 0:00:51]} 10. Qd2 {[%emt 0:00:06]} Be6 {[%emt 0:01:46]} 11. O-O {[%emt 0:00:11]} Qa5 {[%emt 0:00:58]} 12. Rac1 {[%emt 0:08:14]} Rfc8 {[%emt 0:00:44]} 13. b3 {[%emt 0:00:18]} a6 {[%emt 0:01:44]} 14. f4 {[%emt 0:24:44]} Bg4 {[%emt 0:10:15]} 15. Bd3 {[%emt 0:01:01]} Bd7 {[%emt 0:06:40]} 16. h3 {[%emt 0:02:05]} Bc6 {[%emt 0:07:39]} 17. Qe1 {[%emt 0:17:58]} Nd7 {[%emt 0:08:41]} 18. Nd5 {[%emt 0:02:41]} Qxe1 {[%emt 0:01:15]} 19. Rfxe1 {[%emt 0:00:55]} Bxd5 {[%emt 0:00:35]} 20. exd5 {[%emt 0:00:20]} Bb2 {[%emt 0:07:40]} 21. Rc2 {[%emt 0:01:30]} Bf6 {[%emt 0:00:09]} 22. g4 {[%emt 0:02:49]} h6 {[%emt 0:06:43]} 23. Rec1 {[%emt 0:04:35]} Nc5 {[%emt 0:08:41]} 24. Bf1 {[%emt 0:00:12]} a5 {[%emt 0:00:50]} 25. Rb1 {[%emt 0:02:12]} Kg7 {[%emt 0:04:35]} 26. Kg2 {[%emt 0:00:30]} Kf8 {[%emt 0:06:24]} 27. Kf3 {[%emt 0:00:37]} Nd7 {[%emt 0:03:06]} 28. Rbc1 {[%emt 0:00:28]} Nc5 {[%emt 0:00:34]} 29. Rh2 {[%emt 0:00:39]} g5 {[%emt 0:00:49]} 30. h4 {[%emt 0:02:13]} Kg7 {[%emt 0:05:19]} 31. hxg5 {[%emt 0:01:31]} hxg5 {[%emt 0:00:06]} 32. fxg5 {[%emt 0:00:01]} Be5 {[%emt 0:00:32]} 33. Rh5 {[%emt 0:00:08]} Rh8 {[%emt 0:04:37]} 34. Be2 {[%emt 0:00:25]} Nd7 {[%emt 0:06:23]} 35. Rch1 {[%emt 0:03:03]} Bc3 {[%emt 0:01:22]} 36. Ke4 {[%emt 0:00:59]} Rxh5 {[%emt 0:01:42]} 37. gxh5 {[%emt 0:00:19]} a4 {[%emt 0:00:52]} 38. Kd3 {[%emt 0:01:10]} Bb4 {[%emt 0:01:25]} 39. Bd4+ {[%emt 0:04:31]} Ne5+ {[%emt 0:00:06]} 40. Ke4 {[%emt 0:02:20]} axb3 {[%emt 0:00:11]} 41. axb3 {[%emt 0:00:01]} Ra2 {[%emt 0:01:14]} 42. Bd3 {[%emt 0:00:46]} Rg2 {[%emt 0:00:47]} 43. Rg1 {[%emt 0:04:08]} Rh2 {[%emt 0:01:46]} 44. h6+ {[%emt 0:00:51]} Kh8 {[%emt 0:00:51]} 45. Rg4 {[%emt 0:07:46]} f6 {[%emt 0:01:05]} 46. Bxe5 {[%emt 0:01:13]} dxe5 {[%emt 0:00:38]} 47. gxf6 {[%emt 0:02:28]} exf6 {[%emt 0:00:02]} 48. Kf5 {[%emt 0:01:57]} Rxh6 {[%emt 0:01:11]} 49. Ke6 {[%emt 0:00:01]} f5+ {[%emt 0:00:29]} 50. Kxf5 {[%emt 0:00:02]} Bd6 {[%emt 0:00:10]} 51. Rg6 {[%emt 0:01:12]} Rxg6 {[%emt 0:00:29]} 52. Kxg6 {[%emt 0:00:02]} Kg8 {[%emt 0:00:43]} 53. Kf6 {[%emt 0:00:06]} Kf8 {[%emt 0:00:31]} 54. Ke6 {[%emt 0:00:28]} Bb4 {[%emt 0:00:32]} 55. Kd7 {[%emt 0:01:15]} Kf7 {[%emt 0:00:35]} 56. Kc7 {[%emt 0:01:16]} Ke7 {[%emt 0:00:06]} 57. Kxb7 {[%emt 0:00:06]} Kd6 {[%emt 0:00:08]} 58. Kb6 {[%emt 0:00:07]} Bc3 {[%emt 0:00:54]} 59. Be4 {[%emt 0:00:10]} Bd4+ {[%emt 0:00:32]} 60. Kb5 {[%emt 0:00:05]} Kc7 {[%emt 0:00:06]} 61. c5 {[%emt 0:00:06]} Kd7 {[%emt 0:00:35]} 62. Bf5+ {[%emt 0:00:08]} Kc7 {[%emt 0:00:07]} 63. d6+ {[%emt 0:00:16]} 1/2-1/2

[Event "VIII Open Semana Santa 2024"]
[Site "San Vicente del Raspeig"]
[Date "2024.03.27"]
[Round "1.16"]
[White "Bono Monreal, Alberto"]
[Black "Urazayev, Arystanbek"]
[Result "0-1"]
[ECO "C56"]
[WhiteElo "2050"]
[BlackElo "2476"]
[Annotator "RC"]
[PlyCount "68"]
[EventDate "2024.03.27"]
[EventType "swiss"]
[EventCountry "ESP"]
[SourceTitle "playchess.com"]
[Source "ChessBase"]
[SourceQuality "1"]
[TimeControl "5400+30"]

1. e4 {[%emt 0:00:03]} e5 {[%emt 0:01:15]} 2. Nf3 {[%emt 0:00:08]} Nc6 {[%emt 0:00:07]} 3. Bc4 {[%emt 0:00:06]} Nf6 {[%emt 0:00:51]} 4. d4 {[%emt 0:00:08]} exd4 {[%emt 0:00:55]} 5. O-O {[%emt 0:00:09]} Nxe4 {[%emt 0:06:56]} 6. Re1 {[%emt 0:00:40]} d5 {[%emt 0:00:02]} 7. Bxd5 {[%emt 0:00:11]} Qxd5 {[%emt 0:00:03]} 8. Nc3 {[%emt 0:00:10]} Qd7 {[%emt 0:00:03]} 9. Nxe4 {[%emt 0:01:49]} Be7 {[%emt 0:01:27]} 10. Bg5 {[%emt 0:04:39]} O-O {[%emt 0:01:15]} 11. Bxe7 {[%emt 0:02:00]} Qxe7 {[%emt 0:00:09]} 12. Nxd4 {[%emt 0:00:38]} Bd7 {[%emt 0:00:30]} 13. c3 {[%emt 0:11:11]} Rad8 {[%emt 0:02:30]} 14. Qh5 {[%emt 0:04:56]} Rfe8 {[%emt 0:08:02]} 15. h3 {[%emt 0:03:46]} Qf8 {[%emt 0:02:30]} 16. Qg5 {[%emt 0:11:34]} f6 {[%emt 0:04:43]} 17. Qg3 {[%emt 0:06:56]} Nxd4 {[%emt 0:01:43]} 18. cxd4 {[%emt 0:00:44]} Bc6 {[%emt 0:00:31]} 19. Nc5 {[%emt 0:01:33]} Rxe1+ {[%emt 0:07:00]} 20. Rxe1 {[%emt 0:00:57]} Qf7 {[%emt 0:00:17]} 21. Qg4 {[%emt 0:23:30]} h5 {[%emt 0:11:48]} 22. Qf5 {[%emt 0:06:05]} Rxd4 {[%emt 0:15:09]} 23. Qc8+ {[%emt 0:04:28]} Kh7 {[%emt 0:00:09]} 24. Ne6 {[%emt 0:01:50]} Re4 {[%emt 0:01:54]} 25. Rxe4 {[%emt 0:06:24]} Bxe4 {[%emt 0:00:24]} 26. Nxc7 {[%emt 0:00:03]} Qg6 {[%emt 0:06:10]} 27. g4 {[%emt 0:02:07]} Qg5 {[%emt 0:06:32]} 28. Ne6 {[%emt 0:01:06]} Qd2 {[%emt 0:01:49]} 29. Qc5 {[%emt 0:02:45]} Bd5 {[%emt 0:05:11]} 30. Nf8+ {[%emt 0:03:44]} Kh6 {[%emt 0:01:03]} 31. Kh2 {[%emt 0:00:47]} hxg4 {[%emt 0:00:56]} 32. hxg4 {[%emt 0:00:16]} Qf4+ {[%emt 0:00:07]} 33. Kg1 {[%emt 0:00:36]} Qxg4+ {[%emt 0:00:07]} 34. Kf1 {[%emt 0:00:02]} Qd1# {[%emt 0:00:06]} 0-1